fUSD/lending_fUSD_20240802
["ID","MTS","AMOUNT","RATE_DAILY","PERIOD"]
[333868102,1722583832490,-306.51095069,0.00016033,2]
[333868103,1722583832501,-5000.0,0.00016033,2]
[333868104,1722583832511,-885.66516749,0.00016051,2]
[333868105,1722583832521,-227.88,0.00016053,2]
[333868106,1722583832531,-200.0,0.00016066,2]
[333868107,1722583832540,-200.0,0.00016073,2]
[333868108,1722583832550,-250.0,0.00016213,2]
[333868109,1722583832560,-307.56,0.00016261,2]
[333868110,1722583832570,-200.0,0.0001634,2]
[333868111,1722583832579,-542.76,0.00016343,2]
[333868112,1722583832589,-631.80156545,0.00016441,2]
[333868113,1722583832599,-759.9667326,0.0001647,2]
[333868114,1722583832609,-264.18081086,0.0001647,2]
[333868115,1722583832631,-400.0,0.00016677,2]
[333868116,1722583832640,-162.52,0.00016712,2]
[333868117,1722583832650,-1000.0,0.00016785,2]
[333868118,1722583832660,-49225.725,0.00016796,2]
[333868119,1722583832670,-327.93317452,0.00016799,2]
[333868120,1722583832680,-349.59702865,0.00016799,2]
[333868121,1722583832689,-211.02439765,0.00016855,2]
[333868122,1722583832699,-281.34157616,0.00016855,2]
[333868123,1722583832708,-184.71865705,0.00016855,2]
[333868124,1722583832717,-229.303379,0.00016882,2]
[333868125,1722583832727,-267.98557083,0.00016882,2]
[333868126,1722583832737,-357.3570875,0.00016882,2]
[333868127,1722583832747,-528.75956555,0.00016897,2]
[333868128,1722583832756,-186.63806957,0.00016897,2]
[333868129,1722583832766,-309.16666027,0.00016897,2]
[333868130,1722583832775,-188.75202884,0.00016897,2]
[333868131,1722583832784,-236.11333926,0.00016999,2]
[333868132,1722583832795,-281.49487044,0.00016999,2]
[333868133,1722583832805,-364.09329704,0.00016999,2]
[333868134,1722583832815,-885.66516749,0.00017082,2]
[333868135,1722583832824,-172.75,0.00017122,2]
[333868136,1722583832834,-151.04109427,0.0001726,2]
[333868137,1722583832844,-217.04135498,0.00017399,2]
[333868138,1722583832853,-1500.0,0.00017399,2]
[333868139,1722583832867,-1000.0,0.000174,2]
[333868140,1722583832878,-150.44,0.00017616,2]
[333868141,1722583832887,-150.0,0.00017616,2]
[333868142,1722583832897,-150.0,0.00017616,2]
[333868143,1722583832907,-150.0,0.00017616,2]
[333868144,1722583832917,-150.0,0.00017616,2]
[333868145,1722583832926,-300.0,0.00017616,2]
[333868146,1722583832936,-1762.37384286,0.00017636,2]
[333868147,1722583832945,-1044.27722436,0.0001764,2]
[333868148,1722583832955,-1000.0,0.00017708,2]
[333868149,1722583832965,-10000.0,0.00017708,2]
[333868150,1722583832975,-719.78871111,0.00017739,2]
[333868151,1722583832985,-236.40146343,0.00017782,2]
[333868152,1722583832994,-1138.66833219,0.00017799,2]
[333868153,1722583833004,-1176.52390346,0.00017807,2]
[333868154,1722583833013,-330.24945772,0.00017838,2]
[333868155,1722583833024,-187.752,0.00017878,2]
[333868156,1722583833033,-55548.1807442,0.0001789,2]
[333868157,1722583833043,-298.6888927,0.00017898,2]
[333868158,1722583833052,-250.78,0.000179,2]
[333868159,1722583833063,-1079.4833,0.000179,2]
[333868160,1722583833073,-14140.1848,0.000179,2]
[333868161,1722583833083,-100000.0,0.000179,2]
[333868162,1722583833096,-6943.52259303,0.00017928,2]
[333868163,1722583833107,-6943.52259303,0.0001799,2]
[333868164,1722583833121,-155.35,0.0001799,2]
[333868165,1722583833131,-210.68434848,0.00017999,2]
[333868166,1722583833141,-5950.2341632,0.00017999,2]
[333868167,1722583833151,-494.0,0.00018,2]
[333868168,1722583833160,-700.0,0.00018,2]
[333868169,1722583833172,-655.91846741,0.00018,2]
[333868170,1722583833181,-1000.0,0.00018,18]
[333868171,1722583833192,-3000.0,0.00018,2]
[333868172,1722583833203,-1118.10025103,0.00018,2]
[333868173,1722583833213,-2216.0,0.00018,2]
[333868174,1722583833224,-5547.68743978,0.00018,2]
[333868175,1722583833233,-330.24945769,0.00018024,2]
[333868176,1722583833243,-840.71,0.0001803,2]
[333868177,1722583833253,-414.42088347,0.00018081,2]
[333868178,1722583833264,-1672.34925907,0.000181,2]
[333868179,1722583833275,-885.66516749,0.00018112,2]
[333868180,1722583833285,-1074.49398937,0.00018176,2]
[333868181,1722583833296,-155.01828512,0.00018176,2]
[333868182,1722583833306,-653.41417875,0.00018176,2]
[333868183,1722583833316,-330.24945769,0.00018211,2]
[333868184,1722583833327,-6943.52259303,0.00018247,2]
[333868185,1722583833336,-6943.52259303,0.00018395,2]
[333868186,1722583833346,-330.24945769,0.00018397,2]
[333868187,1722583833356,-3000.0,0.000184,2]
[333868188,1722583833369,-167.0,0.00018444,2]
[333868189,1722583833379,-155.63806645,0.00018471,2]
[333868190,1722583833389,-420.52,0.00018493,2]
[333868191,1722583833398,-834.36,0.00018493,2]
[333868192,1722583833408,-150.37,0.00018493,2]
[333868193,1722583833418,-834.36,0.00018493,2]
[333868194,1722583833428,-834.36,0.00018493,2]
[333868195,1722583833437,-834.36,0.00018493,2]
[333868196,1722583833447,-834.36,0.00018493,2]
[333868197,1722583833456,-708.91,0.00018493,2]
[333868198,1722583833466,-526.08215279,0.00018499,2]
[333868199,1722583833476,-649.57165307,0.00018499,2]
[333868200,1722583833487,-1621.89615136,0.00018499,2]
[333868201,1722583833498,-1184.58935214,0.00018499,2]
[333868202,1722583833507,-307.56,0.00018525,2]
[333868203,1722583833517,-1113.08201533,0.00018529,2]
[333868204,1722583833526,-306.4078323,0.00018529,2]
[333868205,1722583833536,-532.15968433,0.00018529,2]
[333868206,1722583833546,-485.01350292,0.00018529,2]
[333868207,1722583833556,-370.21098026,0.00018547,2]
[333868208,1722583833566,-159.5561325,0.00018547,2]
[333868209,1722583833576,-476.85585111,0.00018547,2]
[333868210,1722583833587,-312.20443313,0.00018547,2]
[333868211,1722583833596,-6943.52259303,0.00018557,2]
[333868212,1722583833606,-6943.52259303,0.00018566,2]
[333868213,1722583833616,-420.49,0.00018575,2]
[333868214,1722583833626,-420.52,0.00018575,2]
[333868215,1722583833637,-834.36,0.00018575,2]
[333868216,1722583833647,-834.36,0.00018575,2]
[333868217,1722583833656,-330.24945769,0.00018583,2]
[333868218,1722583833666,-155.078536,0.00018599,2]
[333868219,1722583833677,-238.27785117,0.00018599,2]
[333868220,1722583833687,-530.55013629,0.00018599,2]
[333868221,1722583833696,-535.42562793,0.00018599,2]
[333868222,1722583833707,-400.0,0.00018761,2]
[333868223,1722583833717,-330.24945769,0.0001877,2]
[333868224,1722583833727,-6943.52259303,0.00018875,2]
[333868225,1722583833737,-1000.0,0.00018884,2]
[333868226,1722583833746,-6943.52259303,0.00018886,2]
[333868227,1722583833757,-6943.52259303,0.0001889,2]
[333868228,1722583833766,-530.55013629,0.00018898,2]
[333868229,1722583833776,-155.08113004,0.00018898,2]
[333868230,1722583833786,-202.85667828,0.00018898,2]
[333868231,1722583833796,-380.18881833,0.00018898,2]
[333868232,1722583833805,-170.81662989,0.000189,2]
[333868233,1722583833815,-153.87477486,0.000189,2]
[333868234,1722583833825,-6957.2161,0.000189,2]
[333868235,1722583833835,-330.24945769,0.00018956,2]
[333868236,1722583833845,-165.42600709,0.00018968,2]
[333868237,1722583833854,-118039.884082,0.0001897,2]
[333868238,1722583833865,-14476.45573756,0.0001897,2]
[333868239,1722583833879,-12562.91561287,0.0001897,2]
[333868240,1722583833891,-13550.17293125,0.0001897,2]
[333868241,1722583833903,-45722.39162235,0.0001897,2]
[333868242,1722583833914,-312.75876885,0.0001897,2]
[333868243,1722583833926,-5109.07626416,0.0001897,2]
[333868244,1722583833938,-436.64173545,0.0001897,2]
[333868245,1722583833950,-3394.36268549,0.0001897,2]
[333868246,1722583833961,-454.2225082,0.0001897,2]
[333868250,1722583837658,-382.0828596,0.00012958,2]
[333868251,1722583839458,-12612.0730566,0.00012958,2]
[333868252,1722583839470,-400.0,0.00016855,2]
[333868253,1722583839481,-359.31040171,0.00016951,2]
[333868254,1722583839493,-1762.37384286,0.00017533,2]
[333868255,1722583839504,-283.50062919,0.00018547,2]
[333868256,1722583839515,-13305.55622274,0.0001897,2]
[333868257,1722583839528,-1173.65274454,0.0001897,2]
[333868258,1722583839541,-1118.64598073,0.0001897,2]
[333868259,1722583839555,-590.05754824,0.0001897,2]
[333868260,1722583839568,-426.35735425,0.0001897,2]
[333868261,1722583839733,-237.907,0.00014878,2]
[333868262,1722583839744,-210.68434848,0.00018969,2]
[333868263,1722583839756,-463.69756464,0.00018969,2]
[333868264,1722583839768,-2179.71336932,0.0001897,2]
[333868265,1722583839779,-49205.5633224,0.0001898,2]
[333868266,1722583839790,-356.11,0.00018986,2]
[333868267,1722583839801,-436.7,0.00018986,2]
[333868268,1722583839812,-339.81,0.00018986,2]
[333868269,1722583839823,-669.41,0.00018986,2]
[333868270,1722583839835,-262429.671053,0.0001899,2]
[333868271,1722583839845,-535.42333167,0.00018999,2]
[333868272,1722583839857,-270.50449526,0.00018999,2]
[333868273,1722583839868,-623.71755966,0.00018999,2]
[333868274,1722583839879,-644.58001291,0.00018999,2]
[333868275,1722583839890,-517.0,0.00019,2]
[333868276,1722583839901,-1197.61261805,0.00019,2]
[333868277,1722583839912,-741049.08780837,0.00019,2]
[333868278,1722583839934,-4112.87853256,0.00019,2]
[333868279,1722583839947,-36952.32646455,0.00019,2]
[333868280,1722583839961,-1259.96086,0.00019,2]
[333868281,1722583839978,-587.46169813,0.00019,2]
[333868282,1722583839991,-647.095,0.00019,2]
[333868283,1722583840006,-665.03,0.00019,2]
[333868284,1722583840020,-1399.33318681,0.00019,2]
[333868287,1722583840034,-2844.67368354,0.00019,2]
[333868553,1722583842765,-659.44059965,0.00013989,2]
[333868555,1722583842778,-12334.71531655,0.00013989,2]
[333868557,1722583842789,-413968.15276604,0.00019,2]
[333868559,1722583842800,-2526.48677485,0.00019,2]
[333868561,1722583842811,-155.14687161,0.00019,2]
[333868563,1722583842822,-186.30794476,0.00019,2]
[333868566,1722583842832,-999.78142945,0.00019,2]
[333868568,1722583842843,-197.06375131,0.00019045,2]
[333868570,1722583842854,-160.24817792,0.00019045,2]
[333868572,1722583842865,-314.64877463,0.00019045,2]
[333868574,1722583842878,-796.44676731,0.0001907,2]
[333868576,1722583842889,-700.0,0.0001907,2]
[333868579,1722583842900,-954.63342996,0.00019078,2]
[333868581,1722583842910,-1541.57549892,0.00019078,2]
[333868583,1722583842921,-274.314209,0.000191,3]
[333868585,1722583842931,-153.87477485,0.00019142,2]
[333868587,1722583842942,-330.24945769,0.00019143,2]
[333868589,1722583842954,-885.66516749,0.00019143,2]
[333868591,1722583842965,-219.56,0.00019168,30]
[333868592,1722583842976,-165.42600709,0.00019175,2]
[333868593,1722583842987,-154.89292255,0.00019177,2]
[333868594,1722583842998,-155.0,0.00019177,2]
[333868595,1722583843009,-159452.06066438,0.00019178,3]
[333868596,1722583843020,-509.07200627,0.00019178,2]
[333868597,1722583843032,-500.0,0.00019178,2]
[333868598,1722583843044,-500.0,0.00019178,2]
[333868599,1722583843056,-500.0,0.00019178,2]
[333868600,1722583843067,-500.0,0.00019178,2]
[333868601,1722583843079,-500.0,0.00019178,2]
[333868602,1722583843093,-508.72182787,0.00019178,2]
[333868603,1722583843104,-506.63907332,0.00019178,2]
[333868604,1722583843115,-500.0,0.00019178,2]
[333868605,1722583843127,-500.0,0.00019178,2]
[333868607,1722583843138,-500.0,0.00019178,2]
[333868608,1722583843149,-500.0,0.00019178,2]
[333868609,1722583843162,-500.0,0.00019178,2]
[333868611,1722583843175,-500.0,0.00019178,2]
[333868613,1722583843189,-500.0,0.00019178,2]
[333868614,1722583843200,-500.0,0.00019178,2]
[333868615,1722583843212,-500.0,0.00019178,2]
[333868616,1722583843224,-500.0,0.00019178,2]
[333868617,1722583843237,-500.0,0.00019178,2]
[333868618,1722583843250,-500.0,0.00019178,2]
[333868619,1722583843262,-500.0,0.00019178,2]
[333868620,1722583843273,-500.0,0.00019178,2]
[333868621,1722583843284,-500.0,0.00019178,2]
[333868622,1722583843296,-500.0,0.00019178,2]
[333868623,1722583843307,-500.0,0.00019178,2]
[333868624,1722583843318,-500.0,0.00019178,2]
[333868625,1722583843329,-442.89603497,0.00019178,2]
[333868626,1722583843340,-500.0,0.00019178,2]
[333868627,1722583843351,-2936.42,0.00019178,2]
[333868628,1722583843362,-500.0,0.00019178,2]
[333868629,1722583843376,-500.0,0.00019178,2]
[333868630,1722583843387,-500.0,0.00019178,2]
[333868631,1722583843398,-500.0,0.00019178,2]
[333868632,1722583843409,-507.89242394,0.00019178,2]
[333868633,1722583843420,-500.0,0.00019178,2]
[333868634,1722583843432,-500.0,0.00019178,2]
[333868635,1722583843443,-500.0,0.00019178,2]
[333868636,1722583843455,-500.0,0.00019178,2]
[333868637,1722583843467,-500.0,0.00019178,2]
[333868638,1722583843478,-500.0,0.00019178,2]
[333868639,1722583843490,-500.0,0.00019178,2]
[333868640,1722583843501,-500.0,0.00019178,2]
[333868641,1722583843512,-500.0,0.00019178,2]
[333868642,1722583843524,-500.0,0.00019178,2]
[333868643,1722583843535,-500.0,0.00019178,2]
[333868644,1722583843547,-500.0,0.00019178,2]
[333868645,1722583843558,-500.0,0.00019178,2]
[333868647,1722583843570,-500.0,0.00019178,2]
[333868648,1722583843581,-742.28,0.00019178,2]
[333868649,1722583843593,-476.03622517,0.00019178,2]
[333868650,1722583843605,-595.38,0.00019178,2]
[333868651,1722583843616,-595.38,0.00019178,2]
[333868652,1722583843631,-595.38,0.00019178,2]
[333868653,1722583843642,-595.38,0.00019178,2]
[333868654,1722583843654,-595.38,0.00019178,2]
[333868655,1722583843666,-595.38,0.00019178,2]
[333868656,1722583843677,-595.38,0.00019178,2]
[333868657,1722583843689,-595.38,0.00019178,2]
[333868658,1722583843701,-595.38,0.00019178,2]
[333868659,1722583843712,-595.38,0.00019178,2]
[333868660,1722583844960,-595.38,0.00019178,2]
[333868661,1722583845010,-595.38,0.00019178,2]
[333868662,1722583845040,-595.38,0.00019178,2]
[333868663,1722583845065,-577.62003887,0.00019178,2]
[333868664,1722583845077,-595.38,0.00019178,2]
[333868665,1722583845089,-595.38,0.00019178,2]
[333868666,1722583845105,-595.38,0.00019178,2]
[333868667,1722583845115,-595.38,0.00019178,2]
[333868668,1722583845127,-595.38,0.00019178,2]
[333868669,1722583845139,-595.38,0.00019178,2]
[333868670,1722583845150,-595.38,0.00019178,2]
[333868671,1722583845161,-595.38,0.00019178,2]
[333868672,1722583845171,-595.38,0.00019178,2]
[333868673,1722583845182,-2836.49,0.00019178,2]
[333868674,1722583845192,-595.38,0.00019178,2]
[333868675,1722583845202,-500.0,0.00019178,2]
[333868676,1722583845212,-500.0,0.00019178,2]
[333868677,1722583845223,-595.38530442,0.00019178,2]
[333868678,1722583845233,-500.0,0.00019178,2]
[333868679,1722583845243,-500.0,0.00019178,2]
[333868680,1722583845253,-500.0,0.00019178,2]
[333868681,1722583845263,-500.0,0.00019178,2]
[333868682,1722583845273,-644.63,0.00019178,2]
[333868683,1722583845283,-1842.56,0.00019178,2]
[333868684,1722583845294,-500.0,0.00019178,2]
[333868685,1722583845304,-500.0,0.00019178,2]
[333868686,1722583845314,-500.0,0.00019178,2]
[333868687,1722583845324,-3362.12,0.00019178,2]
[333868688,1722583845334,-500.0,0.00019178,2]
[333868689,1722583845343,-1297.15,0.00019178,2]
[333868690,1722583845354,-500.0,0.00019178,2]
[333868691,1722583845364,-500.0,0.00019178,2]
[333868692,1722583845374,-506.68565854,0.00019178,2]
[333868693,1722583845384,-500.0,0.00019178,2]
[333868694,1722583845394,-500.0,0.00019178,2]
[333868695,1722583845404,-500.0,0.00019178,2]
[333868696,1722583845415,-2132.99,0.00019178,2]
[333868697,1722583845424,-500.0,0.00019178,2]
[333868698,1722583845434,-180.42344667,0.00019178,2]
[333868699,1722583845444,-1111.16,0.00019178,2]
[333868701,1722583845454,-1885.04,0.00019178,2]
[333868702,1722583845463,-500.0,0.00019178,2]
[333868703,1722583845473,-1473.17,0.00019178,2]
[333868704,1722583845483,-500.0,0.00019178,2]
[333868705,1722583845493,-500.0,0.00019178,2]
[333868706,1722583845503,-500.0,0.00019178,2]
[333868707,1722583845513,-500.0,0.00019178,2]
[333868708,1722583845523,-500.0,0.00019178,2]
[333868709,1722583845533,-500.0,0.00019178,2]
[333868710,1722583845543,-1052.68,0.00019178,2]
[333868711,1722583845553,-964.74,0.00019178,2]
[333868712,1722583845564,-500.0,0.00019178,2]
[333868713,1722583845574,-500.0,0.00019178,2]
[333868714,1722583845583,-373.20599166,0.00019178,2]
[333868715,1722583845593,-1100.05,0.00019178,2]
[333868716,1722583845603,-500.0,0.00019178,2]
[333868717,1722583845613,-2197.06,0.00019178,2]
[333868718,1722583845623,-500.0,0.00019178,2]
[333868720,1722583845633,-669.41,0.00019178,2]
[333868722,1722583845643,-500.0,0.00019178,2]
[333868724,1722583845653,-500.0,0.00019178,2]
[333868725,1722583845663,-500.0,0.00019178,2]
[333868726,1722583845673,-500.0,0.00019178,2]
[333868728,1722583845683,-500.0,0.00019178,2]
[333868730,1722583845693,-1596.94,0.00019178,2]
[333868732,1722583845703,-500.0,0.00019178,2]
[333868733,1722583845712,-959.17,0.00019178,2]
[333868734,1722583845722,-2536.94,0.00019178,2]
[333868735,1722583845731,-500.0,0.00019178,2]
[333868736,1722583845742,-500.0,0.00019178,2]
[333868737,1722583845752,-1201.01,0.00019178,2]
[333868738,1722583845762,-500.0,0.00019178,2]
[333868739,1722583845772,-571.58765485,0.00019178,2]
[333868740,1722583845781,-1324.73,0.00019178,2]
[333868741,1722583845791,-500.0,0.00019178,2]
[333868742,1722583845801,-500.0,0.00019178,2]
[333868745,1722583845811,-2013.18,0.00019178,2]
[333868747,1722583845820,-233.43958259,0.00019178,2]
[333868749,1722583845830,-1737.01,0.00019178,2]
[333868752,1722583845840,-500.0,0.00019178,2]
[333868754,1722583845850,-500.0,0.00019178,2]
[333868756,1722583845860,-609.06,0.00019178,2]
[333868757,1722583845870,-500.0,0.00019178,2]
[333868758,1722583845880,-1432.65,0.00019178,2]
[333868759,1722583845890,-646.16,0.00019178,2]
[333868760,1722583845900,-500.0,0.00019178,2]
[333868761,1722583845910,-500.0,0.00019178,2]
[333868762,1722583845921,-936.19,0.00019178,2]
[333868763,1722583845930,-500.0,0.00019178,2]
[333868764,1722583845940,-500.0,0.00019178,2]
[333868765,1722583845950,-500.0,0.00019178,2]
[333868766,1722583845960,-500.0,0.00019178,2]
[333868767,1722583845970,-2247.55,0.00019178,2]
[333868768,1722583845979,-1761.51,0.00019178,2]
[333868769,1722583845989,-500.0,0.00019178,2]
[333868770,1722583845999,-500.0,0.00019178,2]
[333868771,1722583846009,-505.02,0.00019178,2]
[333868772,1722583846019,-1345.7,0.00019178,2]
[333868773,1722583846030,-882.04,0.00019178,2]
[333868774,1722583846039,-500.0,0.00019178,2]
[333868775,1722583846049,-500.0,0.00019178,2]
[333868776,1722583846059,-500.0,0.00019178,2]
[333868777,1722583846069,-577.78,0.00019178,2]
[333868778,1722583846080,-500.0,0.00019178,2]
[333868779,1722583846092,-1240.75,0.00019178,2]
[333868780,1722583846107,-940.2,0.00019178,2]
[333868781,1722583846117,-2376.99,0.00019178,2]
[333868782,1722583846129,-500.0,0.00019178,2]
[333868783,1722583846142,-840.89,0.00019178,2]
[333868784,1722583846153,-2631.32,0.00019178,2]
[333868785,1722583846163,-548.34,0.00019178,2]
[333868786,1722583846176,-424.86991504,0.00019178,2]
[333868787,1722583846186,-500.0,0.00019178,2]
[333868788,1722583846196,-1098.96,0.00019178,2]
[333868789,1722583846205,-973.86,0.00019178,2]
[333868790,1722583846215,-500.0,0.00019178,2]
[333868791,1722583846224,-2068.69,0.00019178,2]
[333868792,1722583846234,-500.0,0.00019178,2]
[333868793,1722583846243,-500.0,0.00019178,2]
[333868794,1722583846253,-500.0,0.00019178,2]
[333868795,1722583846263,-1869.72,0.00019178,2]
[333868796,1722583846273,-771.99,0.00019178,2]
[333868797,1722583846282,-376.54274119,0.00019178,2]
[333868798,1722583846292,-500.0,0.00019178,2]
[333868799,1722583846301,-501.37067545,0.00019178,2]
[333868800,1722583846310,-500.0,0.00019178,2]
[333868802,1722583846320,-1348.68,0.00019178,2]
[333868804,1722583846329,-2441.91,0.00019178,2]
[333868806,1722583846339,-500.0,0.00019178,2]
[333868808,1722583846350,-500.0,0.00019178,2]
[333868809,1722583846360,-604.07,0.00019178,2]
[333868810,1722583846369,-500.0,0.00019178,2]
[333868811,1722583846381,-500.0,0.00019178,2]
[333868812,1722583846391,-1336.25,0.00019178,2]
[333868813,1722583846400,-500.0,0.00019178,2]
[333868814,1722583846411,-500.0,0.00019178,2]
[333868815,1722583846422,-500.0,0.00019178,2]
[333868816,1722583846434,-500.0,0.00019178,2]
[333868817,1722583846444,-500.0,0.00019178,2]
[333868818,1722583846454,-3199.97,0.00019178,2]
[333868819,1722583846463,-500.0,0.00019178,2]
[333868820,1722583846472,-500.0,0.00019178,2]
[333868821,1722583846482,-500.0,0.00019178,2]
[333868822,1722583846491,-1930.85,0.00019178,2]
[333868823,1722583846502,-500.0,0.00019178,2]
[333868824,1722583846511,-813.49,0.00019178,2]
[333868825,1722583846523,-508.23,0.00019178,2]
[333868826,1722583846533,-500.0,0.00019178,2]
[333868827,1722583846543,-2123.14,0.00019178,2]
[333868828,1722583846552,-500.0,0.00019178,2]
[333868829,1722583846562,-1035.99,0.00019178,2]
[333868830,1722583846572,-790.3,0.00019178,2]
[333868831,1722583846582,-1966.44,0.00019178,2]
[333868832,1722583846591,-1465.45,0.00019178,2]
[333868833,1722583846601,-500.0,0.00019178,2]
[333868834,1722583846610,-208.77804009,0.00019178,2]
[333868835,1722583846620,-515.57,0.00019178,2]
[333868836,1722583846634,-500.0,0.00019178,2]
[333868837,1722583846644,-2750.09,0.00019178,2]
[333868838,1722583846658,-500.0,0.00019178,2]
[333868839,1722583846668,-500.0,0.00019178,2]
[333868840,1722583846678,-500.0,0.00019178,2]
[333868841,1722583846688,-500.0,0.00019178,2]
[333868842,1722583846698,-796.74,0.00019178,2]
[333868843,1722583846707,-1111.45,0.00019178,2]
[333868844,1722583846717,-823.18,0.00019178,2]
[333868845,1722583846727,-1578.89,0.00019178,2]
[333868846,1722583846736,-500.0,0.00019178,2]
[333868847,1722583846746,-500.0,0.00019178,2]
[333868848,1722583846756,-811.42,0.00019178,2]
[333868849,1722583846765,-2448.41,0.00019178,2]
[333868850,1722583846775,-500.0,0.00019178,2]
[333868851,1722583846784,-937.92,0.00019178,2]
[333868852,1722583846794,-500.0,0.00019178,2]
[333868853,1722583846803,-500.0,0.00019178,2]
[333868854,1722583846813,-500.0,0.00019178,2]
[333868855,1722583846823,-2431.06,0.00019178,2]
[333868856,1722583846831,-649.58192891,0.00019178,2]
[333868857,1722583846841,-500.0,0.00019178,2]
[333868858,1722583846850,-522.55,0.00019178,2]
[333868859,1722583846859,-614.78609563,0.00019178,2]
[333868860,1722583846869,-8334.89,0.00019178,2]
[333868861,1722583846881,-500.0,0.00019178,2]
[333868862,1722583846890,-1043.81,0.00019178,2]
[333868863,1722583846900,-4384.29,0.00019178,2]
[333868864,1722583846909,-500.0,0.00019178,2]
[333868865,1722583846918,-500.0,0.00019178,2]
[333868866,1722583846928,-500.0,0.00019178,2]
[333868867,1722583846938,-677.11,0.00019178,2]
[333868868,1722583846947,-500.0,0.00019178,2]
[333868869,1722583846957,-537.94,0.00019178,2]
[333868870,1722583846966,-500.0,0.00019178,2]
[333868871,1722583846975,-500.0,0.00019178,2]
[333868872,1722583846985,-500.0,0.00019178,2]
[333868873,1722583846994,-500.0,0.00019178,2]
[333868874,1722583847003,-500.0,0.00019178,2]
[333868875,1722583847012,-500.0,0.00019178,2]
[333868876,1722583847022,-500.0,0.00019178,2]
[333868877,1722583847031,-500.0,0.00019178,2]
[333868878,1722583847041,-500.0,0.00019178,2]
[333868879,1722583847050,-500.0,0.00019178,2]
[333868880,1722583847059,-500.0,0.00019178,2]
[333868881,1722583847069,-500.0,0.00019178,2]
[333868882,1722583847078,-500.0,0.00019178,2]
[333868883,1722583847088,-500.0,0.00019178,2]
[333868884,1722583847101,-500.0,0.00019178,2]
[333868885,1722583847111,-908.61,0.00019178,2]
[333868886,1722583847120,-500.0,0.00019178,2]
[333868887,1722583847137,-500.0,0.00019178,2]
[333868888,1722583847147,-500.0,0.00019178,2]
[333868889,1722583847157,-500.0,0.00019178,2]
[333868890,1722583847167,-292.3933247,0.00019178,2]
[333868891,1722583847177,-500.0,0.00019178,2]
[333868892,1722583847187,-509.26,0.00019178,2]
[333868893,1722583847197,-500.0,0.00019178,2]
[333868894,1722583847207,-500.0,0.00019178,2]
[333868895,1722583847216,-1826.79,0.00019178,2]
[333868896,1722583847226,-500.0,0.00019178,2]
[333868897,1722583847235,-622.8,0.00019178,2]
[333868898,1722583847245,-830.79,0.00019178,2]
[333868899,1722583847255,-500.0,0.00019178,2]
[333868900,1722583847264,-500.0,0.00019178,2]
[333868901,1722583847273,-500.0,0.00019178,2]
[333868902,1722583847283,-515.25,0.00019178,2]
[333868903,1722583847292,-4461.86,0.00019178,2]
[333868904,1722583847301,-1389.48,0.00019178,2]
[333868905,1722583847311,-1619.52,0.00019178,2]
[333868906,1722583847321,-500.0,0.00019178,2]
[333868907,1722583847330,-569.42,0.00019178,2]
[333868908,1722583847340,-500.0,0.00019178,2]
[333868909,1722583847349,-1091.72,0.00019178,2]
[333868910,1722583847359,-3656.18,0.00019178,2]
[333868911,1722583847368,-510.39855761,0.00019178,2]
[333868912,1722583847381,-500.0,0.00019178,2]
[333868913,1722583847390,-500.0,0.00019178,2]
[333868914,1722583847399,-4954.7,0.00019178,2]